bitfinex/quotes_SOLUSD_20250818
["timestamp","ask_amount","ask_price","bid_price","bid_amount"]
[1755485602957,26.72,184.35,184.29,38.30722457]
[1755485603158,0.72,184.35,184.31,23.201009]
[1755485603778,3.43224782,184.35,184.3,23.201009]
[1755485604278,0.2,184.36,184.33,23.201009]
[1755485604483,0.2,184.36,184.33,0.65]
[1755485604684,0.2,184.36,184.34,23.201009]
[1755485605953,0.2,184.36,184.34,15.10621557]
[1755485606181,23.921009,184.35,184.3,15.10621557]
[1755485606382,0.72,184.34,184.3,15.10621557]
[1755485606699,48.1,184.35,184.31,23.201009]
[1755485606987,48.1,184.35,184.31,15.10621557]
[1755485607190,47.38,184.35,184.34,38.30722457]
[1755485607362,0.2,184.36,184.35,15.10621557]
[1755485607558,0.2,184.36,184.35,38.30722457]
[1755485607992,0.2,184.36,184.34,23.201009]
[1755485608163,0.72,184.35,184.29,15.10621557]
[1755485608374,4.25315176,184.35,184.29,15.10621557]
[1755485608578,3.53244385,184.35,184.31,15.10621557]
[1755485608777,4.25244385,184.35,184.31,15.10621557]
[1755485609386,4.25244385,184.35,184.31,23.201009]
[1755485609693,9.67694225,184.35,184.31,23.201009]
[1755485609896,3.53244385,184.35,184.34,23.201009]
[1755485610103,0.2,184.36,184.35,15.10621557]
[1755485610393,0.2,184.36,184.35,38.30722457]
[1755485610758,0.2,184.36,184.32,15.10621557]
[1755485610962,0.2,184.36,184.35,38.30722457]
[1755485611389,0.2,184.36,184.35,15.10621557]
[1755485611765,48.72,184.36,184.27,15.10621557]
[1755485612087,48.72,184.36,184.3,15.10621557]
[1755485612088,26.73847648,184.35,184.3,15.10621557]
[1755485612397,27.45847648,184.34,184.31,0.03]
[1755485612700,23.201009,184.32,184.31,0.03]
[1755485612863,26.73847648,184.32,184.31,0.03]
[1755485613061,27.45847648,184.32,184.31,0.03]
[1755485613278,53.45847648,184.32,184.31,0.03]
[1755485613967,58.8838237,184.32,184.31,0.03]
[1755485614793,53.45847648,184.32,184.31,0.03]
[1755485614980,101.11847648,184.32,184.31,0.03]
[1755485615161,53.45847648,184.32,184.31,0.03]
[1755485615367,101.11847648,184.32,184.31,0.03]
[1755485615568,77.91746748,184.32,184.31,0.03]
[1755485615763,51.19746748,184.32,184.31,0.03]
[1755485616078,3.75746748,184.32,184.31,0.03]
[1755485616586,32.3838237,184.32,184.31,0.03]
[1755485617165,9.1828147,184.32,184.31,0.03]
[1755485617366,32.3838237,184.32,184.31,0.03]
[1755485617671,36.32105414,184.32,184.31,0.03]
[1755485617982,3.03746748,184.32,184.31,0.03]
[1755485618206,0.2,184.36,184.32,15.10621557]
[1755485618372,47.38,184.35,184.32,38.30722457]
[1755485618568,47.38,184.35,184.31,0.03]
[1755485618569,0.72,184.34,184.31,0.03]
[1755485618766,23.201009,184.32,184.31,0.03]
[1755485618996,27.14013388,184.32,184.31,0.03]
[1755485619274,27.86013388,184.32,184.31,0.03]
[1755485620224,33.2854811,184.32,184.31,0.03]
[1755485620510,59.2854811,184.32,184.31,0.03]
[1755485620730,36.0844721,184.32,184.31,0.03]
[1755485621027,29.93912488,184.32,184.31,0.03]
[1755485621178,0.2,184.36,184.31,23.231009]
[1755485621374,4.14351912,184.36,184.32,23.201009]
[1755485621587,47.18,184.35,184.33,23.201009]
[1755485621878,47.9,184.35,184.31,23.231009]
[1755485622309,47.9,184.35,184.34,23.201009]
[1755485622310,47.18,184.35,184.34,23.201009]
[1755485622611,47.18,184.35,184.34,38.30722457]
[1755485622782,0.2,184.36,184.35,15.10621557]
[1755485623506,6.34424015,184.36,184.32,15.10621557]
[1755485623730,28.82524915,184.36,184.31,15.13621557]
[1755485624028,28.82524915,184.36,184.31,0.03]
[1755485624200,0.72,184.35,184.31,0.03]
[1755485624405,0.72,184.35,184.31,23.231009]
[1755485624607,0.72,184.35,184.31,15.13621557]
[1755485624841,23.921009,184.34,184.31,0.03]
[1755485625036,47.0,184.33,184.31,0.03]
[1755485625344,70.921009,184.33,184.31,0.03]
[1755485625708,47.72,184.33,184.31,0.03]
[1755485626124,23.891009,184.32,184.31,0.03]
[1755485626314,33.26236469,184.32,184.31,0.03]
[1755485626715,37.6825336,184.32,184.31,0.03]
[1755485626908,33.26236469,184.32,184.31,0.03]
[1755485627222,82.09458909,184.32,184.31,0.03]
[1755485627631,82.09458909,184.32,184.31,1e-08]
[1755485628016,85.64550799,184.32,184.31,1e-08]
[1755485628530,26.0,184.3,184.29,1e-08]
[1755485628728,58.67016077,184.3,184.29,1e-08]
[1755485628912,59.36016077,184.3,184.29,1e-08]
[1755485629110,59.36016077,184.3,184.27,0.03]
[1755485629111,59.36016077,184.3,184.27,1e-08]
[1755485629327,23.201009,184.28,184.27,1e-08]
[1755485629513,32.67016077,184.28,184.27,1e-08]
[1755485629715,33.36016077,184.28,184.27,1e-08]
[1755485630137,54.21692737,184.28,184.27,1e-08]
[1755485630334,50.2709189,184.28,184.27,1e-08]
[1755485630711,55.69744375,184.28,184.27,1e-08]
[1755485631146,79.58845275,184.28,184.27,1e-08]
[1755485631337,83.52686226,184.28,184.27,1e-08]
[1755485631537,83.52580874,184.28,184.27,1e-08]
[1755485632135,79.58845275,184.28,184.27,1e-08]
[1755485632317,71.81008196,184.28,184.27,1e-08]
[1755485632523,75.75275009,184.28,184.27,1e-08]
[1755485632922,77.72421063,184.28,184.27,1e-08]
[1755485633124,83.64097585,184.28,184.27,1e-08]
[1755485633328,77.72421063,184.28,184.27,1e-08]
[1755485634643,77.72222231,184.28,184.27,1e-08]
[1755485635040,26.0,184.25,184.23,0.03]
[1755485635245,71.26569746,184.25,184.23,0.03]
[1755485635555,23.60423692,184.24,184.23,0.03]
[1755485635923,28.03745497,184.24,184.23,0.03]
[1755485636450,23.60423692,184.24,184.23,0.03]
[1755485636870,23.60423692,184.24,184.22,0.03]
[1755485636871,29.03193991,184.24,184.22,0.03]
[1755485637030,82.46976415,184.23,184.08,0.65]
[1755485637231,15.42263821,184.21,184.11,15.42263821]
[1755485637443,65.25355711,184.21,184.13,30.52885378]
[1755485637653,65.94355711,184.21,184.12,0.65]
[1755485637829,65.94355711,184.21,184.08,0.65]
[1755485637830,15.10621557,184.2,184.08,0.65]
[1755485638029,15.10621557,184.2,183.9,16.11833202]
[1755485638030,26.0,184.16,183.91,46.21825891]
[1755485638257,15.42263821,184.08,184.02,16.10263821]
[1755485638554,26.0,184.11,184.06,15.10621557]
[1755485638555,46.24,184.07,184.06,15.10621557]
[1755485638864,46.26,184.07,184.06,15.78621557]
[1755485639851,46.26,184.07,184.06,0.68]
[1755485640322,61.68263821,184.07,184.03,15.10621557]
[1755485640525,13.57672539,184.14,184.05,15.10621557]
[1755485640828,26.0,184.12,184.07,15.10621557]
[1755485641043,46.2,184.11,184.07,15.10621557]
[1755485641349,46.2,184.11,184.08,16.10263821]
[1755485641553,41.42263821,184.09,184.02,15.42263821]
[1755485641848,15.42263821,184.05,184.02,15.10621557]
[1755485642049,15.42263821,184.05,183.99,15.42263821]
[1755485642050,46.18,184.04,184.01,15.10621557]
[1755485642232,46.18,184.04,184.02,0.68]
[1755485642549,46.18,184.04,184.02,16.10263821]
[1755485642726,46.18,184.04,184.02,0.68]
[1755485642922,46.18,184.04,184.0,15.10621557]
[1755485643127,46.18,184.04,184.0,31.20885378]
[1755485643528,46.18,184.04,184.0,30.52885378]
[1755485643748,46.18,184.04,184.01,16.10263821]
[1755485644145,46.18,184.04,184.02,0.68]
[1755485644854,61.60263821,184.04,183.99,0.68]
[1755485645031,46.18,184.04,183.99,16.10263821]
[1755485645758,46.18,184.04,184.0,0.68]
[1755485645957,46.18,184.04,184.0,16.10263821]
[1755485646262,46.18,184.04,184.0,0.68]
[1755485646442,46.87,184.04,183.97,15.42263821]
[1755485646643,46.18,184.04,184.0,15.42263821]
[1755485646851,46.18,184.04,184.0,0.68]
[1755485647052,0.69,184.08,184.02,15.42263821]
[1755485647254,46.06,184.07,184.01,0.68]
[1755485647581,46.04,184.06,184.01,0.68]
[1755485647764,46.04,184.06,184.02,0.68]
[1755485647945,46.04,184.06,184.04,15.42263821]
[1755485648290,46.04,184.08,184.05,16.10263821]
[1755485648581,15.42263821,184.06,184.0,0.03]
[1755485648793,15.42263821,184.02,184.0,0.03]
[1755485649077,46.02,184.01,184.0,0.03]
[1755485649241,62.13263821,184.01,184.0,0.03]
[1755485649673,46.71,184.01,184.0,0.03]
[1755485649976,16.11263821,184.05,184.0,0.03]
[1755485650141,61.48263821,184.04,184.0,0.03]
[1755485650345,15.42263821,184.02,184.0,0.03]
[1755485650672,46.06,184.01,184.0,0.03]
[1755485650845,52.18448725,184.01,184.0,0.03]
[1755485651042,67.60712546,184.01,184.0,0.03]
[1755485651260,46.06,184.01,184.0,0.03]
[1755485651451,41.42263821,184.02,184.0,0.03]
[1755485651656,46.12,184.01,184.0,0.03]
[1755485652681,0.69,184.07,184.0,16.13263821]
[1755485652983,51.61305495,184.06,184.0,0.03]
[1755485653269,15.42263821,184.04,184.0,0.03]
[1755485653475,46.14,184.03,184.0,15.45263821]
[1755485653778,46.14,184.03,184.0,0.03]
[1755485653949,46.14,184.03,184.0,15.45263821]
[1755485654140,26.0,184.08,184.02,30.52885378]
[1755485654346,46.1,184.07,184.02,15.10621557]
[1755485654542,46.1,184.07,184.03,0.68]
[1755485654942,46.1,184.07,184.01,5.43447362]
[1755485655146,46.1,184.07,184.0,0.03]
[1755485655389,0.69,184.06,184.0,0.03]
[1755485655679,46.1,184.07,184.03,15.42263821]
[1755485655968,46.79,184.07,184.04,15.42263821]
[1755485656146,46.79,184.07,184.03,15.42263821]
[1755485656348,46.1,184.07,184.04,15.42263821]
[1755485656771,46.1,184.07,184.0,5.46467507]
[1755485657072,46.1,184.07,184.01,20.5406737]
[1755485657442,7.80343079,184.11,184.06,15.42263821]
[1755485657658,7.80343079,184.11,184.1,15.42263821]
[1755485657865,46.06,184.13,184.07,0.67]
[1755485658274,46.75,184.13,184.04,0.67]
[1755485658454,46.75,184.13,184.08,15.42263821]
[1755485658660,0.69,184.12,184.08,15.42263821]
[1755485658862,0.69,184.11,184.01,5.43445813]
[1755485659045,0.69,184.11,184.05,15.42263821]
[1755485659246,16.11263821,184.11,184.05,15.42263821]
[1755485659967,26.0,184.13,184.1,15.42263821]
[1755485660173,45.96,184.12,184.1,15.42263821]
[1755485660752,45.96,184.12,184.11,15.42263821]
[1755485660960,45.96,184.12,184.07,20.53889829]
[1755485661174,45.96,184.12,184.1,15.42263821]
[1755485661460,45.96,184.12,184.11,15.42263821]
[1755485662477,45.96,184.12,184.08,15.42263821]
[1755485662679,46.65,184.12,184.08,15.42263821]
[1755485663245,45.96,184.12,184.04,15.10621557]
[1755485663448,16.11263821,184.11,184.02,15.10621557]
[1755485663676,16.11263821,184.11,184.05,15.42263821]
[1755485663862,0.69,184.11,184.08,15.42263821]
[1755485664063,45.96,184.12,184.1,15.42263821]
[1755485664269,46.42,184.15,184.11,15.42263821]
[1755485664478,0.69,184.14,184.05,0.67]
[1755485664776,4.21730254,184.14,184.09,15.42263821]
[1755485664981,0.69,184.13,184.05,0.67]
[1755485665170,6.12098511,184.13,184.08,15.42263821]
[1755485665479,0.69,184.12,184.07,15.42263821]
[1755485665674,0.69,184.11,184.07,15.42263821]
[1755485666569,3.52730254,184.12,184.07,15.42263821]
[1755485666753,3.52730254,184.12,184.09,15.42263821]
[1755485667088,0.69,184.11,184.06,15.42263821]
[1755485667251,50.45730254,184.11,184.04,0.67]
[1755485667458,7.44894343,184.1,184.06,15.42263821]
[1755485667774,3.52730254,184.1,184.07,15.42263821]
[1755485668169,3.52730254,184.1,184.05,15.10621557]
[1755485668370,3.52730254,184.1,184.08,15.42263821]
[1755485668659,46.91,184.14,184.09,15.42263821]
[1755485668866,46.91,184.14,184.08,15.42263821]
[1755485668867,8.15461515,184.13,184.08,15.42263821]
[1755485669057,4.22582186,184.13,184.09,15.42263821]
[1755485669580,3.53582186,184.13,184.09,15.42263821]
[1755485669766,3.53582186,184.13,184.07,20.53888187]
[1755485669954,3.53582186,184.13,184.1,15.42263821]
[1755485670158,3.53582186,184.13,184.12,15.42263821]
[1755485670756,3.53582186,184.16,184.12,15.42263821]
[1755485670951,3.93666449,184.15,184.14,15.42263821]
[1755485671159,3.53582186,184.16,184.14,15.42263821]
[1755485672179,3.53582186,184.16,184.11,15.10621557]
[1755485672180,3.53582186,184.16,184.15,30.52885378]
[1755485672377,0.06,184.18,184.15,16.09263821]
[1755485672569,0.06,184.18,184.17,15.42263821]
[1755485673077,0.06,184.18,184.15,15.10621557]
[1755485673305,0.69,184.17,184.1,15.10621557]
[1755485673479,8.17795262,184.17,184.11,15.42263821]
[1755485673787,3.95213076,184.16,184.13,15.42263821]
[1755485674087,4.22582186,184.16,184.1,15.10621557]
[1755485674391,0.69,184.16,184.1,15.10621557]
[1755485674593,4.22582186,184.16,184.12,15.42263821]
[1755485674753,4.22582186,184.16,184.1,15.10621557]
[1755485675064,8.18452052,184.15,184.1,15.10621557]
[1755485675260,7.49452052,184.14,184.11,15.42263821]
[1755485675575,3.53582186,184.14,184.11,15.42263821]
[1755485675773,3.53582186,184.14,184.13,15.42263821]
[1755485675976,3.53582186,184.16,184.13,15.42263821]
[1755485676199,7.49789341,184.15,184.13,15.42263821]
[1755485676487,3.53582186,184.14,184.13,15.42263821]
[1755485676787,3.53582186,184.16,184.13,15.42263821]
[1755485676977,3.53582186,184.16,184.12,15.10621557]
[1755485677589,3.53582186,184.16,184.05,13.58280765]
[1755485677590,8.19393007,184.15,184.03,0.03]
[1755485677811,11.92726626,184.14,184.04,5.43358304]
[1755485678102,7.50393007,184.13,184.06,15.10621557]
[1755485678270,7.50393007,184.12,184.09,15.42263821]
[1755485678473,5.43015355,184.16,184.09,0.67]
[1755485678474,3.57235029,184.13,184.09,0.67]
[1755485678702,3.57235029,184.13,184.07,5.4326892]
[1755485678703,3.57235029,184.12,184.06,0.67]
[1755485678882,3.57235029,184.11,184.05,15.10621557]
[1755485679075,7.5407774,184.1,184.05,15.10621557]
[1755485679262,3.57235029,184.12,184.07,15.42263821]
[1755485679471,7.54266876,184.11,184.03,15.13621557]
[1755485679665,7.54234894,184.1,184.05,15.10621557]
[1755485679889,3.57235029,184.11,184.1,15.10621557]
[1755485680092,3.57235029,184.14,184.1,31.19885378]
[1755485680265,3.57235029,184.16,184.13,15.42263821]
[1755485680466,3.57235029,184.15,184.13,0.67]
[1755485680666,0.69,184.15,184.09,0.03]
[1755485680896,4.26235029,184.15,184.13,15.42263821]
[1755485681096,3.57235029,184.16,184.1,15.10621557]
[1755485681395,3.57235029,184.15,184.1,15.10621557]
[1755485681597,3.57235029,184.16,184.14,15.42263821]
[1755485681969,3.57235029,184.16,184.1,15.10621557]
[1755485682176,3.57235029,184.16,184.15,15.42263821]
[1755485682502,3.57235029,184.17,184.15,15.42263821]
[1755485682685,3.57235029,184.17,184.16,15.42263821]
[1755485683200,0.06,184.18,184.15,15.42263821]
[1755485683371,0.69,184.17,184.15,15.42263821]
[1755485683571,0.06,184.18,184.16,15.42263821]
[1755485683768,0.06,184.18,184.17,16.09263821]
[1755485683988,0.06,184.18,184.17,0.67]
[1755485684300,0.06,184.18,184.17,15.42263821]
[1755485684674,0.06,184.18,184.14,6.10064516]
[1755485685009,0.06,184.18,184.17,15.42263821]
[1755485686113,0.73,184.18,184.14,0.03]
[1755485686310,0.73,184.18,184.15,15.42263821]
[1755485686606,0.67,184.17,184.14,0.03]
[1755485686907,0.67,184.17,184.14,15.45263821]
[1755485687476,0.06,184.18,184.14,0.03]
[1755485687679,15.42263821,184.15,184.14,0.03]
[1755485687886,4.24161941,184.15,184.14,0.03]
[1755485688099,19.66425762,184.15,184.14,0.03]
[1755485688292,19.66425762,184.15,184.09,15.45263821]
[1755485688293,19.66425762,184.15,184.09,0.03]
[1755485688513,45.96,184.16,184.09,0.03]
[1755485688514,15.42263821,184.11,184.09,0.03]
[1755485688886,0.67,184.1,184.09,0.03]
[1755485689585,16.09263821,184.1,184.09,0.03]
[1755485689926,19.65663501,184.1,184.09,0.03]
[1755485690486,25.08846553,184.1,184.09,0.03]
[1755485691385,15.42263821,184.05,184.03,0.03]
[1755485691584,45.8,184.05,184.03,0.03]
[1755485692693,46.47,184.05,184.03,0.03]
[1755485693089,45.8,184.05,184.03,0.03]
[1755485693490,45.78,184.08,184.04,15.42263821]
[1755485693910,45.78,184.08,184.03,0.03]
[1755485694191,19.64788191,184.07,184.03,0.03]
[1755485694543,21.5256348,184.07,184.03,0.03]
[1755485694691,15.42263821,184.04,184.03,0.03]
[1755485694890,49.51553458,184.04,184.03,0.03]
[1755485695110,45.96,184.04,184.03,0.03]
[1755485695342,46.16,184.07,184.03,15.45263821]
[1755485695515,46.16,184.07,184.06,15.42263821]
[1755485695832,46.16,184.07,184.05,15.42263821]
[1755485696036,46.16,184.07,184.06,15.42263821]
[1755485696324,46.81,184.1,184.06,15.42263821]
[1755485696532,3.56632811,184.09,184.06,0.69]
[1755485696722,3.56632811,184.09,184.08,15.42263821]
[1755485696908,46.12,184.14,184.08,15.42263821]
[1755485697107,3.5666359,184.13,184.1,15.42263821]
[1755485697304,3.5666359,184.13,184.11,15.42263821]
[1755485697707,3.5666359,184.13,184.08,15.42263821]
[1755485697708,0.67,184.12,184.08,15.42263821]
[1755485697924,18.98927411,184.13,184.05,15.10621557]
[1755485698242,18.98927411,184.13,184.05,15.42263821]
[1755485698243,0.67,184.11,184.05,15.42263821]
[1755485698410,0.67,184.11,184.04,15.10621557]
[1755485698607,0.67,184.11,184.07,15.42263821]
[1755485698813,15.42263821,184.08,184.03,0.03]
[1755485699144,3.5666359,184.07,184.05,15.42263821]
[1755485699347,3.5666359,184.09,184.03,0.03]
[1755485699639,3.5666359,184.09,184.03,15.45263821]
[1755485699640,4.2366359,184.09,184.03,15.45263821]
[1755485699837,19.65927411,184.09,184.03,15.45263821]
[1755485700039,26.0,184.07,184.03,0.03]
[1755485700237,15.42263821,184.05,184.03,0.03]
[1755485700441,0.67,184.06,184.03,0.03]
[1755485700645,46.08,184.09,184.05,15.42263821]
[1755485700937,4.24274667,184.08,184.03,0.03]
[1755485701106,0.67,184.08,184.05,15.42263821]
[1755485701307,3.57274667,184.1,184.05,15.42263821]
[1755485701530,4.24274667,184.1,184.07,15.42263821]
[1755485701741,3.57274667,184.1,184.07,15.42263821]
[1755485702655,3.57274667,184.1,184.03,6.15388473]
[1755485702870,3.57274667,184.1,184.09,15.42263821]
[1755485703362,5.13452427,184.16,184.09,15.42263821]
[1755485703564,45.98,184.15,184.14,15.42263821]
[1755485703869,3.5761833,184.15,184.14,15.42263821]
[1755485704035,0.06,184.17,184.15,15.10621557]
[1755485704372,0.06,184.17,184.15,15.42263821]
[1755485704970,0.06,184.17,184.14,15.42263821]
[1755485705134,0.73,184.17,184.12,30.52885378]
[1755485705335,0.67,184.16,184.09,15.10621557]
[1755485705540,0.67,184.16,184.11,15.42263821]
[1755485705741,7.60915749,184.17,184.11,15.10621557]
[1755485705742,3.6361833,184.17,184.11,15.10621557]
[1755485705969,3.6361833,184.17,184.12,0.69]
[1755485706330,3.6361833,184.17,184.16,15.42263821]
[1755485706734,0.06,184.17,184.16,31.76185986]
[1755485706931,0.06,184.17,184.16,16.33922165]
[1755485707131,0.06,184.17,184.16,36.64891459]
[1755485708546,0.06,184.17,184.16,21.76928246]
[1755485708953,0.06,184.17,184.16,37.19192067]
[1755485710740,0.06,184.17,184.16,15.10621557]
[1755485711045,0.06,184.17,184.16,30.52885378]
[1755485712083,0.06,184.17,184.16,36.64891459]
[1755485712248,0.06,184.17,184.16,37.19192067]
[1755485714247,0.06,184.18,184.17,30.52885378]
[1755485714441,0.06,184.19,184.17,31.21885378]
[1755485714646,0.06,184.19,184.18,21.76863384]
[1755485714848,0.06,184.19,184.18,37.19127205]
[1755485715087,0.06,184.2,184.19,15.10621557]
[1755485715287,0.67,184.3,184.2,15.42263821]
[1755485715447,0.06,184.32,184.21,31.07171247]
[1755485715649,0.06,184.32,184.24,15.10621557]
[1755485715876,0.06,184.32,184.31,30.52885378]
[1755485716041,0.06,184.32,184.29,15.42263821]
[1755485716369,0.74,184.32,184.26,15.10621557]
[1755485716567,0.74,184.32,184.3,15.42263821]
[1755485717145,0.74,184.32,184.31,15.42263821]
[1755485717352,0.74,184.32,184.3,15.42263821]
[1755485717768,0.06,184.32,184.3,15.42263821]
[1755485717975,0.06,184.32,184.31,30.52885378]
[1755485718175,0.74,184.32,184.31,15.10621557]
[1755485718672,0.74,184.32,184.28,15.10621557]
[1755485718971,0.68,184.31,184.28,30.52885378]
[1755485719176,0.68,184.31,184.3,15.10621557]
[1755485719468,0.06,184.32,184.3,15.42263821]
[1755485719779,0.06,184.32,184.31,30.52885378]
[1755485720455,0.06,184.32,184.31,56.52885378]
[1755485720660,0.06,184.32,184.31,30.52885378]
[1755485720864,0.06,184.32,184.31,15.10621557]
[1755485721068,0.06,184.32,184.31,35.95449536]
[1755485721247,0.74,184.32,184.31,15.10621557]
[1755485723462,16.16263821,184.32,184.27,15.10621557]
[1755485723777,0.68,184.31,184.28,15.42263821]
[1755485724156,0.06,184.32,184.28,15.42263821]
[1755485724354,0.06,184.32,184.26,15.10621557]
[1755485724355,16.10263821,184.31,184.26,15.10621557]
[1755485724566,15.42263821,184.28,184.15,13.57566544]
[1755485724761,0.68,184.27,184.23,15.42263821]
[1755485725081,0.68,184.3,184.27,15.10621557]
[1755485725278,0.68,184.3,184.27,15.42263821]
[1755485725478,45.04,184.31,184.29,15.10621557]
[1755485725773,26.0,184.31,184.29,15.10621557]
[1755485725977,26.0,184.31,184.25,15.10621557]
[1755485726277,0.06,184.32,184.29,15.10621557]
[1755485726584,0.06,184.32,184.29,15.42263821]
[1755485726751,0.06,184.32,184.31,30.52885378]
[1755485727377,0.06,184.32,184.31,15.10621557]
[1755485727580,0.06,184.32,184.31,30.52885378]
[1755485727951,0.06,184.32,184.31,15.79621557]
[1755485728151,0.06,184.32,184.31,30.52885378]
[1755485728663,0.06,184.32,184.31,15.10621557]
[1755485729650,0.74,184.32,184.31,15.10621557]
[1755485730664,16.16263821,184.32,184.24,15.10621557]
[1755485730977,15.42263821,184.28,184.23,15.10621557]
[1755485731154,16.10263821,184.27,184.23,15.10621557]
[1755485731357,15.42263821,184.25,184.2,15.13621557]
[1755485731549,16.10263821,184.26,184.2,15.13621557]
[1755485731891,15.42263821,184.25,184.2,0.03]
[1755485732081,15.42263821,184.23,184.2,0.03]
[1755485732252,15.42263821,184.21,184.2,0.03]
[1755485732459,70.96,184.21,184.2,0.03]
[1755485732666,71.64,184.21,184.2,0.03]
[1755485733573,44.96,184.23,184.2,0.03]
[1755485733764,60.38263821,184.23,184.2,0.03]
[1755485733970,45.64,184.23,184.2,0.03]
[1755485734174,44.96,184.23,184.2,0.03]
[1755485734369,44.98,184.25,184.23,15.10621557]
[1755485734788,44.98,184.25,184.21,15.10621557]
[1755485735000,0.68,184.3,184.25,15.10621557]
[1755485735277,15.42263821,184.31,184.25,30.52885378]
[1755485735278,45.66,184.29,184.25,30.52885378]
[1755485735468,0.68,184.28,184.25,15.10621557]
[1755485735662,44.98,184.29,184.25,15.10621557]
[1755485736081,45.66,184.29,184.25,15.42263821]
[1755485736459,44.98,184.29,184.25,15.42263821]
[1755485736656,0.68,184.28,184.25,15.10621557]
[1755485736984,16.10263821,184.27,184.22,15.10621557]
[1755485737283,0.68,184.26,184.22,15.10621557]
[1755485737488,26.0,184.28,184.26,15.10621557]
[1755485737689,44.98,184.29,184.26,15.10621557]
[1755485738061,44.98,184.29,184.25,15.42263821]
[1755485738260,45.66,184.29,184.24,30.52885378]
[1755485738492,0.68,184.28,184.2,0.57288816]
[1755485738673,0.68,184.28,184.24,15.10621557]
[1755485738998,0.68,184.28,184.24,30.52885378]
[1755485739499,0.68,184.31,184.27,15.42263821]
[1755485739793,45.02,184.32,184.29,15.42263821]
[1755485739965,45.7,184.32,184.29,15.10621557]
[1755485740592,45.02,184.32,184.29,15.10621557]
[1755485741595,45.7,184.32,184.27,30.52885378]
[1755485741899,3.54752605,184.31,184.28,15.42263821]
[1755485742198,45.02,184.32,184.28,15.42263821]
[1755485743116,0.06,184.32,184.31,15.10621557]
[1755485744297,0.06,184.32,184.31,15.42263821]
[1755485744298,3.61286687,184.32,184.31,15.42263821]
[1755485744485,0.06,184.32,184.31,15.42263821]
[1755485744989,0.06,184.32,184.31,35.95449536]
[1755485746112,0.06,184.32,184.31,30.52885378]
[1755485747312,0.06,184.32,184.31,15.10621557]
[1755485747479,4.33286687,184.32,184.31,15.10621557]
[1755485747799,8.28870576,184.32,184.31,15.10621557]
[1755485749313,31.11747786,184.32,184.26,15.10621557]
[1755485749515,19.87901393,184.3,184.26,15.10621557]
[1755485749717,15.42263821,184.28,184.25,15.10621557]
[1755485749880,8.22870576,184.27,184.25,15.10621557]
[1755485750209,23.65642382,184.26,184.2,15.13621557]
[1755485750406,22.93642382,184.25,184.2,15.13621557]
[1755485750698,3.55286687,184.24,184.2,30.55885378]
[1755485750873,3.55286687,184.25,184.23,30.52885378]
[1755485751073,3.55286687,184.27,184.23,0.68]
[1755485751279,22.94081523,184.26,184.22,15.10621557]
[1755485751578,22.9402593,184.25,184.21,15.10621557]
[1755485751784,3.55286687,184.24,184.21,15.10621557]
[1755485751991,18.97550508,184.24,184.21,15.10621557]
[1755485752194,3.55286687,184.23,184.21,15.10621557]
[1755485752494,15.42263821,184.24,184.21,15.10621557]
[1755485752695,3.55286687,184.23,184.21,15.10621557]
[1755485752896,18.97550508,184.25,184.21,15.10621557]
[1755485753112,3.55286687,184.24,184.21,15.10621557]
[1755485753274,44.94,184.26,184.21,15.10621557]
[1755485753275,18.97550508,184.25,184.21,15.10621557]
[1755485753473,3.55286687,184.24,184.21,15.78621557]
[1755485753693,3.55286687,184.24,184.23,15.10621557]
[1755485753898,3.55286687,184.26,184.23,31.20885378]
[1755485754072,18.97550508,184.29,184.25,15.10621557]
[1755485754295,23.66172474,184.28,184.23,15.10621557]
[1755485754479,7.52003664,184.27,184.23,15.10621557]
[1755485754678,3.55286687,184.26,184.23,15.10621557]
[1755485755008,3.55286687,184.27,184.23,15.10621557]